Cogmind - Beta 13 @@@ ROGUE MODE // 2024.07.24 @ 11:45:19 Player: Sionnis Result: Destroyed by A-27 Freighter with PD Laser Performance ------------- Evolutions (4) 2000 Regions Visited (10) 2000 Robots Destroyed (107) 535 Value Destroyed (2312) 2312 Prototype IDs (37) 740 Alien Tech Used (0) 0 Bonus (43) 43 TOTAL SCORE: 7630 Bonus ------- High Alert Combat Kills 11 Follower Combat Kills 102 Met Data Miner 300 Friendly Fire -370 Cogmind --------- Core Integrity 0/850 Matter 300/300 Energy 36/100 System Corruption 9% Temperature Cool (6) Movement Core (100) Ox1 Location -6/Factory Parts ------- > --- POWER (1) -------- (None) > --- PROPULSION (5) --- (None) > --- UTILITY (7) ------ Enhanced Optical Array Experimental Signal Interpreter Improved Trap Extractor (0/6) > --- WEAPON (2) ------- Kinetic Spear > --- INVENTORY (5) ---- Experimental Sensor Array Improved Power Shielding Improved Propulsion Shielding Improved Utility Shielding System Restoration Module Peak State ------------ > --- POWER ------------ Backup Power III > --- PROPULSION ------- Cesium-ion Thruster Cesium-ion Thruster Improved VTOL Module Cooled VTOL Module Nuclear Pulse Thruster > --- UTILITY ---------- Medium Storage Unit Enhanced Optical Array Experimental Sensor Array Experimental Signal Interpreter System Mapper Deep Network Scanner Ghost Barrier > --- WEAPON ----------- Mini Grenade Launcher Kinetic Spear > --- INVENTORY -------- Xenon Bombardment Thruster Advanced Gravity Neutralizer ECM Suite Improved Power Shielding Improved Propulsion Shielding Improved Utility Shielding Quantum Router System Restoration Module Improved Trap Extractor Cooled Plasma Cannon [Rating: 87] Favorites ----------- Power Heavy Ion Engine Engine Heavy Ion Engine Power Core Light Nuclear Core Propulsion Light Treads Treads Light Treads Flight Unit Cesium-ion Thruster Utility Hacking Suite Device Experimental Sensor Array Storage Large Storage Unit Processor Targeting Computer Hackware Hacking Suite Protection Improved Medium Armor Plating Weapon Shotgun Energy Gun Spread Laser Energy Cannon Neutron Cannon Ballistic Gun Shotgun Launcher Mini Grenade Launcher Slashing Weapon Scythe Piercing Weapon Kinetic Spear Special Melee Weapon Improved Datajack Build | -11 -10 -10 -9 -9 -8 -7 -7 -7 -6 -6 ------- Run | Yrd Mat Min Mat Min Mat Fac Low Dat Pro Fac Slots Evolved 8 | . . . 2 . 2 2 . . . 2 Power . | . . . . . . . . . . . Propulsion 3 | . . . 1 . 1 . . . . 1 Utility 5 | . . . 1 . 1 2 . . . 1 Weapon . | . . . . . . . . . . . Parts Attached 104 | 3 5 1 15 2 29 27 . 5 3 14 Power 8 | 1 . . 2 . 3 1 . . . 1 Engine 7 | 1 . . 2 . 2 1 . . . 1 Core 1 | . . . . . 1 . . . . . Reactor . | . . . . . . . . . . . Propulsion 27 | 2 . 1 4 . 13 3 . . . 4 Treads 16 | 2 . 1 4 . 9 . . . . . Leg . | . . . . . . . . . . . Wheel . | . . . . . . . . . . . Hover . | . . . . . . . . . . . Flight 11 | . . . . . 4 3 . . . 4 Utility 45 | . 2 . 3 1 7 16 . 4 3 9 Device 23 | . . . 2 . 2 11 . . 2 6 Storage 3 | . 1 . . . 2 . . . . . Processor 6 | . 1 . . . . 4 . . . 1 Hackware 6 | . . . . . 2 . . 3 . 1 Protection 7 | . . . 1 1 1 1 . 1 1 1 Artifact . | . . . . . . . . . . . Weapon 24 | . 3 . 6 1 6 7 . 1 . . Energy Gun 4 | . . . 3 . 1 . . . . . Energy Cannon 3 | . . . 1 . . 2 . . . . Ballistic Gun 10 | . 3 . 2 1 4 . . . . . Ballistic Cannon . | . . . . . . . . . . . Launcher 2 | . . . . . . 1 . 1 . . Special Weapon . | . . . . . . . . . . . Impact Weapon . | . . . . . . . . . . . Slashing Weapon 1 | . . . . . 1 . . . . . Piercing Weapon 1 | . . . . . . 1 . . . . Special Melee Weapon 3 | . . . . . . 3 . . . . Unidentified Prototypes 15 | . . . 4 . 2 6 . 3 . . Parts Lost 12 | . . . . . . . . 1 . 11 Power 2 | . . . . . . . . 1 . 1 Propulsion 6 | . . . . . . . . . . 6 Utility 3 | . . . . . . . . . . 3 Weapon 1 | . . . . . . . . . . 1 Highest Loss Streak 8 | . . . . . . . . 1 . 8 To Critical Strikes . | . . . . . . . . . . . Average Slot Usage (%) 97 | . 95 100 98 99 98 96 100 98 92 93 Engine 9 | . 14 14 11 11 8 7 7 5 . 4 Treads 23 | . 28 28 32 33 35 . . . . . Flight 8 | . . . . . . 29 30 30 30 29 Device 4 | . . . 6 . 4 7 7 5 5 5 Storage 9 | . 12 14 11 11 9 7 7 7 7 5 Processor 9 | . 13 14 11 11 4 13 15 13 7 11 Hackware 6 | . . . . . 6 15 15 16 23 19 Protection 4 | . . . 3 10 9 . . 1 1 1 Energy Gun 2 | . . . 10 11 1 . . . . . Ballistic Gun 12 | . 25 28 11 11 15 . . . . . Slashing Weapon 1 | . . . . . . 5 . . . . Piercing Weapon 1 | . . . . . . 1 7 7 7 6 Naked Turns . | . . . . . . . . . . . Heaviest Build 66 | 3 29 29 41 42 66 19 16 17 15 19 Greatest Support 80 | 40 40 40 60 60 80 20 20 20 20 26 Greatest Overweight (x) 2 | . . . . . . . . . . 2 Average Overweight (x) . | . . . . . . . . . . . Largest Inventory Capacity 20 | 5 15 15 15 15 20 10 10 10 10 10 Average Capacity 14 | 5 13 15 15 15 17 10 10 10 10 9 Most Carried 20 | . 15 15 15 15 20 10 10 10 10 10 Average Carried 12 | . 12 14 13 14 14 9 10 9 10 8 Final Capacity 15 | 5 15 15 15 15 10 10 10 10 10 5 Final Carried 15 | . 15 15 14 15 7 10 10 10 10 5 Class Distribution -------------------- 45% | Mutant 18% | Commander-Mutant 10% | Commander-Scout 6% | Scavenger-Mutant 5% | Wizard-Scout 3% | Hacker-Sprinter Dominant Class ---------------- Mutant | -10/Materials Mutant | -10/Mines Mutant | -9/Materials Commander-Mutant | -9/Mines Commander-Mutant | -8/Materials Commander-Scout | -7/Factory Commander-Scout | -7/Lower Caves Commander-Scout | -7/Data Miner Wizard-Sprinter | -6/Proximity Caves Wizard-Scout | -6/Factory Resources | -11 -10 -10 -9 -9 -8 -7 -7 -7 -6 -6 ----------- Run | Yrd Mat Min Mat Min Mat Fac Low Dat Pro Fac Matter Collected 2336 | 179 357 50 314 88 750 403 . . 65 130 Remotely . | . . . . . . . . . . . Salvage Created 3830 | . 473 54 724 159 993 571 . 24 144 688 Parts 225 | . 45 4 42 11 63 31 . 5 3 21 Haulers Intercepted 11 | . 2 . 1 . 4 1 . . . 3 Recyclers Shooed 1 | . . . . . . 1 . . . . Parts Field Recycled . | . . . . . . . . . . . Retrieved Matter . | . . . . . . . . . . . Parts Self-Destructed 6 | . . . . . . . 5 . 1 . Prevented . | . . . . . . . . . . . Kills | -11 -10 -10 -9 -9 -8 -7 -7 -7 -6 -6 ------- Run | Yrd Mat Min Mat Min Mat Fac Low Dat Pro Fac Combat Hostiles Destroyed 68 | . 13 4 23 8 14 4 . . 1 1 Melee 6 | . . . . . . 4 . . 1 1 Guns 62 | . 13 4 23 8 14 . . . . . Classes Destroyed 13 | . 6 1 3 . 2 . . . 1 . Worker 4 | . . . 1 . 1 1 . . . 1 Builder 2 | . . . . . 1 1 . . . . Hauler 11 | . 2 . 1 . 4 1 . . . 3 Recycler 5 | . 1 . . . 2 1 . . . 1 Mechanic 1 | . . . . . 1 . . . . . Operator 2 | . 1 . . . 1 . . . . . Watcher 13 | . 2 . . . 2 5 . . . 4 Swarmer 29 | . 9 3 7 4 6 . . . . . Grunt 26 | . 4 . 12 3 3 2 . . 1 1 Duelist 2 | . . . 1 1 . . . . . . Sentry 10 | . . . 3 . 5 2 . . . . Decomposer 2 | . . . . . . . . . 2 . Samaritan 1 | . . . . . . . . . 1 . Assembled 1 | . . 1 . . . . . . . . Thug 1 | . . . . . 1 . . . . . Best Kill Streak 10 | . 4 3 10 3 4 2 . 1 1 3 Combat Bots Only 10 | . 3 3 10 3 3 1 . . 1 1 Max Kills in Single Turn 2 | . 2 1 2 1 2 1 . 1 1 1 Gunslinging . | . . . . . . . . . . . Exploded . | . . . . . . . . . . . Melee 1 | . . . . . . 1 . . 1 1 Uniques/NPCs Destroyed 1 | . . . . . . . . 1 . . Data Miner (-7/Data Miner) Combat | -11 -10 -10 -9 -9 -8 -7 -7 -7 -6 -6 -------- Run | Yrd Mat Min Mat Min Mat Fac Low Dat Pro Fac Hostile Shots Fired 380 | . 26 6 71 34 51 21 . 8 15 148 Missed 125 | . 4 1 16 11 17 7 . 3 8 58 Damage Taken 3575 | . 183 40 738 237 441 129 . 224 129 1454 Core 1403 | . 64 . 114 10 66 17 . 178 103 851 Absorbed by Shields 32 | . . . . . 32 . . . . . Regen/Repaired (Parts) 154 | . . . 118 . . . . . . 36 Core Remaining (%) 77 | 100 . 74 . 69 88 . . . 57 . Volleys Fired 163 | . 32 5 41 17 68 . . . . . Largest 2 | . 2 2 2 2 2 . . . . . Hottest 93 | . 46 46 88 88 93 . . . . . Shots Fired 326 | . 64 10 82 34 136 . . . . . Gun 326 | . 64 10 82 34 136 . . . . . Cannon . | . . . . . . . . . . . Launcher . | . . . . . . . . . . . Special . | . . . . . . . . . . . Kinetic 261 | . 64 10 41 17 129 . . . . . Thermal 65 | . . . 41 17 7 . . . . . Explosive . | . . . . . . . . . . . Electromagnetic . | . . . . . . . . . . . Robot Hit Streak 17 | . 8 4 17 7 15 . . . . . Robot Miss Streak 7 | . 4 4 6 7 5 . . . . . Penetration Max . | . . . . . . . . . . . Secondary Targets 2 | . . 1 . . 1 . . . . . Max Gunslinging Chain 1 | . . 1 . . 1 . . . . . Shots Hit Robots 309 | . 45 7 71 29 103 26 . 1 6 21 Core Hits 237 | . 27 6 82 26 71 11 . . 4 10 Critical Kills 2 | . 1 . 1 . . . . . . . Critical Parts Destroyed 1 | . . . . . 1 . . . . . Critical Strikes 11 | . 1 . 1 . 2 4 . 1 . 2 Destroy 4 | . 1 . 1 . 2 . . . . . Sever 4 | . . . . . . 4 . . . . Impale 3 | . . . . . . . . 1 . 2 Melee Attacks 99 | . . . . . 9 45 . 1 9 35 Impact . | . . . . . . . . . . . Slashing 48 | . . . . . 9 39 . . . . Piercing 51 | . . . . . . 6 . 1 9 35 Sneak Attacks 21 | . . . . . 1 11 . 1 3 5 Combat Hostiles 3 | . . . . . . 3 . . . . Follow-up Attacks . | . . . . . . . . . . . Damage Inflicted 7342 | . 714 127 1137 407 1945 1352 . 105 400 1155 Guns 4176 | . 711 127 1137 407 1794 . . . . . Cannons . | . . . . . . . . . . . Explosions . | . . . . . . . . . . . Melee 3158 | . . . . . 146 1352 . 105 400 1155 Ramming 8 | . 3 . . . 5 . . . . . Kinetic 3215 | . 711 127 549 179 1649 . . . . . Thermal 961 | . . . 588 228 145 . . . . . Explosive . | . . . . . . . . . . . Electromagnetic . | . . . . . . . . . . . Impact . | . . . . . . . . . . . Slashing 1327 | . . . . . 146 1181 . . . . Piercing 1831 | . . . . . . 171 . 105 400 1155 Highest Corruption 8 | . . . . . . 3 . . . 8 Average Corruption 1 | . . . . . . 1 . . . 1 Corruption Purged 4 | . . . . . . 3 . . . 1 Corruption Blocked . | . . . . . . . . . . . Effects 11 | . . . . . . 7 . . . 4 Message Errors 3 | . . . . . . 1 . . . 2 Matter Fused 2 | . . . . . . 2 . . . . Heat Flow Errors 3 | . . . . . . 1 . . . 2 Energy Discharges 1 | . . . . . . 1 . . . . Data Loss (minor) 1 | . . . . . . 1 . . . . Data Loss (major) 1 | . . . . . . 1 . . . . Overload Shots . | . . . . . . . . . . . Overflow Damage 595 | . . . . . 42 194 . 30 20 309 Projectiles . | . . . . . . . . . . . Explosions . | . . . . . . . . . . . Melee 595 | . . . . . 42 194 . 30 20 309 Knockbacks . | . . . . . . . . . . . Impact . | . . . . . . . . . . . Kinetic . | . . . . . . . . . . . Secondary . | . . . . . . . . . . . Self-Inflicted Damage . | . . . . . . . . . . . Shots . | . . . . . . . . . . . Rammed 4 | . 1 . . . 3 . . . . . Targets Rammed 4 | . 1 . . . 3 . . . . . Kicked . | . . . . . . . . . . . Crushed . | . . . . . . . . . . . Highest Temperature 215 | . . . 199 108 36 93 . . . 215 Average Temperature 35 | . . . 42 41 8 51 . . . 106 Received Heat Transfer 771 | . 18 . 258 48 159 57 . . 45 186 Siege Activations . | . . . . . . . . . . . Robots Corrupted . | . . . . . . . . . . . Combat Hostiles . | . . . . . . . . . . . Parts Fried . | . . . . . . . . . . . Impact Corruptions . | . . . . . . . . . . . Robots Melted . | . . . . . . . . . . . Combat Hostiles . | . . . . . . . . . . . Parts Melted . | . . . . . . . . . . . Heat Transferred 1180 | . . . 720 280 180 . . . . . Parts Sabotaged . | . . . . . . . . . . . Parts Stolen . | . . . . . . . . . . . Parts Stripped . | . . . . . . . . . . . Power Chain Reactions . | . . . . . . . . . . . Alert | -11 -10 -10 -9 -9 -8 -7 -7 -7 -6 -6 ------- Run | Yrd Mat Min Mat Min Mat Fac Low Dat Pro Fac Peak Influence 416 | . 215 110 416 222 207 201 . . . 277 Initial 50 | . . 40 . . 8 13 . . . 50 Average 96 | . 67 77 180 128 75 86 . . . 99 Maximum Alert Level 2 | . 1 . 2 1 1 1 . . . 1 Low Security (%) 88 | 100 96 100 51 59 98 98 . . . 97 Level 1 10 | . 3 . 43 40 1 1 . . . 2 Level 2 . | . . . 5 . . . . . . . Level 3 . | . . . . . . . . . . . Level 4 . | . . . . . . . . . . . Level 5 . | . . . . . . . . . . . High Security . | . . . . . . . . . . . Max Security . | . . . . . . . . . . . Squads Dispatched 20 | . 2 . 3 1 1 10 . . . 3 Investigation 15 | . 1 . 3 1 1 8 . . . 1 Extermination 2 | . . . . . . 1 . . . 1 Reinforcement 2 | . 1 . . . . 1 . . . . Assault . | . . . . . . . . . . . Garrison 1 | . . . . . . . . . . 1 Intercept . | . . . . . . . . . . . Searches Triggered . | . . . . . . . . . . . Construction Impeded . | . . . . . . . . . . . Haulers Reinforced 1 | . . . . . . 1 . . . . Active Scanning Responses . | . . . . . . . . . . . Cargo Convoy Interrupts 2 | . . . . . . 1 . . . 1 Stealth | -11 -10 -10 -9 -9 -8 -7 -7 -7 -6 -6 --------- Run | Yrd Mat Min Mat Min Mat Fac Low Dat Pro Fac Distress Signals 2 | . 1 . 1 . . . . . . . Communications Jammed . | . . . . . . . . . . . Distress Signals . | . . . . . . . . . . . Times Spotted 161 | . 20 3 30 10 36 14 . 4 9 35 Peak Tracking Total 19 | . 4 2 4 5 5 3 . 4 3 19 Tactical Retreats 12 | . . . 3 . . 1 . . 3 5 Traps | -11 -10 -10 -9 -9 -8 -7 -7 -7 -6 -6 ------- Run | Yrd Mat Min Mat Min Mat Fac Low Dat Pro Fac Traps Triggered 2 | . 1 . . . . 1 . . . . Indirectly . | . . . . . . . . . . . Trap Hack Attempts 18 | . . . . . . 18 . . . . Triggered . | . . . . . . . . . . . Disarmed 1 | . . . . . . 1 . . . . Reprogrammed 6 | . . . . . . 6 . . . . Reused 6 | . . . . . . 3 . . . 3 Traps Extracted 9 | . . . . . . 9 . . . . Installed 9 | . . . . . . 6 . . . 3 Triggered 10 | . . . . . . 4 . . 3 3 Most Traps Carried 6 | . . . . . . 6 3 3 3 3 Machines | -11 -10 -10 -9 -9 -8 -7 -7 -7 -6 -6 ---------- Run | Yrd Mat Min Mat Min Mat Fac Low Dat Pro Fac Machines Disabled 2 | . . . . . 2 . . . . . Max in Single Turn 1 | . . . . . 1 . . . . . Garrison Access 4 | . . . . . . 3 . . . 1 Machines Repaired . | . . . . . . . . . . . Machines Dismantled . | . . . . . . . . . . . Machines Sabotaged . | . . . . . . . . . . . Overloaded Fab Kills . | . . . . . . . . . . . Hacking | -11 -10 -10 -9 -9 -8 -7 -7 -7 -6 -6 --------- Run | Yrd Mat Min Mat Min Mat Fac Low Dat Pro Fac Machines Accessed 66 | . 7 . 7 2 11 22 . 3 . 14 Terminals 41 | . 7 . 6 . 9 12 . . . 7 Fabricators 5 | . . . . . . 4 . . . 1 Repair Stations 4 | . . . 1 . 1 1 . . . 1 Recycling Units 4 | . . . . . . 1 . . . 3 Scanalyzers 3 | . . . . . 1 1 . . . 1 Garrison Access 4 | . . . . . . 3 . . . 1 Total Hacks 203 | . 21 . 30 2 42 53 . 16 . 39 Successful 149 | . 7 . 17 2 31 41 . 16 . 35 Failed 51 | . 13 . 12 . 11 12 . . . 3 Catastrophic 3 | . . . 2 . . 1 . . . . Database Lockouts 3 | . 1 . 1 . . . . . . 1 Manual 114 | . 21 . 21 . 32 27 . . . 13 Terminals 127 | . 21 . 22 . 33 29 . . . 22 Fabricators 13 | . . . . . . 11 . . . 2 Repair Stations 18 | . . . 8 . 2 3 . . . 5 Recycling Units 8 | . . . . . . 2 . . . 6 Scanalyzers 13 | . . . . . 7 3 . . . 3 Garrison Access 6 | . . . . . . 5 . . . 1 Terminal Hacks 69 | . 3 . 5 2 14 15 . 16 . 14 Record 11 | . . . . . . . . 11 . . Part Schematic 12 | . . . . . 6 3 . 2 . 1 Robot Analysis 4 | . 2 . 1 . . 1 . . . . Prototype ID Bank 11 | . . . 1 . 4 1 . 3 . 2 Open Door 2 | . . . . 2 . . . . . . Open DSF 1 | . . . . . . . . . . 1 Level Access Points 1 | . . . . . . . . . . 1 Machine Index 1 | . . . . . . . . . . 1 Terminal Index 4 | . . . 1 . 1 1 . . . 1 Fabricator Index 2 | . . . . . . 1 . . . 1 Alert Level 1 | . . . . . . . . . . 1 Unreport Threat 6 | . 1 . 2 . 3 . . . . . Locate Traps 1 | . . . . . . . . . . 1 Dispatch Records 1 | . . . . . . 1 . . . . Recall Investigation 4 | . . . . . . 4 . . . . Recall Extermination 2 | . . . . . . 1 . . . 1 Recall Reinforcements 1 | . . . . . . 1 . . . . Hauler Manifests 3 | . . . . . . 1 . . . 2 Registered Prototypes 1 | . . . . . . . . . . 1 Fabricator Hacks 9 | . . . . . . 8 . . . 1 Network Status 1 | . . . . . . . . . . 1 Load Schematic 4 | . . . . . . 4 . . . . Build 4 | . . . . . . 4 . . . . Repair Station Hacks 16 | . . . 7 . 2 2 . . . 5 Scan Component 6 | . . . 4 . . . . . . 2 Repair 5 | . . . 3 . . . . . . 2 Refit 5 | . . . . . 2 2 . . . 1 Recycling Unit Hacks 4 | . . . . . . 1 . . . 3 Retrieve Components 4 | . . . . . . 1 . . . 3 Scanalyzer 12 | . . . . . 7 2 . . . 3 Insert Component 7 | . . . . . 4 1 . . . 2 Analyze 5 | . . . . . 3 1 . . . 1 Garrison Access Hacks 4 | . . . . . . 3 . . . 1 Seal Access 4 | . . . . . . 3 . . . 1 Unauthorized Hacks 35 | . 4 . 5 . 8 10 . . . 8 Terminals 27 | . 4 . 5 . 8 6 . . . 4 Assimilate 11 | . 1 . 2 . 4 3 . . . 1 Botnet 12 | . 3 . 2 . 3 2 . . . 2 Operators 4 | . . . 1 . 1 1 . . . 1 Fabricators 4 | . . . . . . 3 . . . 1 Prioritize 3 | . . . . . . 3 . . . . Haulers 1 | . . . . . . . . . . 1 Repair Stations . | . . . . . . . . . . . Recycling Units 4 | . . . . . . 1 . . . 3 Reject 2 | . . . . . . . . . . 2 Recyclers 2 | . . . . . . 1 . . . 1 Scanalyzers . | . . . . . . . . . . . Garrison Access . | . . . . . . . . . . . Data Cores Recovered . | . . . . . . . . . . . Used . | . . . . . . . . . . . Hacking Detections 49 | . 7 . 7 . 10 18 . . . 7 Full Trace Events 14 | . . . 3 . 2 8 . . . 1 Feedback Events 4 | . . . . . . 3 . . . 1 Corruption 4 | . . . . . . 3 . . . 1 Feedback Blocked . | . . . . . . . . . . . Robot Schematics Acquired . | . . . . . . . . . . . Robots Built . | . . . . . . . . . . . Authchips . | . . . . . . . . . . . Time . | . . . . . . . . . . . Total Robot Build Rating . | . . . . . . . . . . . Part Schematics Acquired 17 | . . . . . 9 4 . 2 . 2 Parts Built 5 | . . . . . . 5 . . . . Authchips . | . . . . . . . . . . . Time 108 | . . . . . . 108 . . . . Total Part Build Rating 15 | . . . . . . 15 . . . . Parts Repaired 5 | . . . 3 . . . . . . 2 Time 245 | . . . 172 . . . . . . 73 Parts Recycled . | . . . . . . . . . . . Recycled Matter . | . . . . . . . . . . . Retrieved Matter . | . . . . . . . . . . . Retrieved Components 7 | . . . . . . 2 . . . 5 Parts Scanalyzed 5 | . . . . . 3 1 . . . 1 Part Schematics Acquired 5 | . . . . . 3 1 . . . 1 Parts Damaged . | . . . . . . . . . . . Bothacking | -11 -10 -10 -9 -9 -8 -7 -7 -7 -6 -6 ------------ Run | Yrd Mat Min Mat Min Mat Fac Low Dat Pro Fac Used RIF Installer . | . . . . . . . . . . . Robots Hacked . | . . . . . . . . . . . Non-combat . | . . . . . . . . . . . Combat . | . . . . . . . . . . . Robot Hacks Applied . | . . . . . . . . . . . Relay Couplers Released . | . . . . . . . . . . . Fabnet Peak Effective % . | . . . . . . . . . . . Robots Rewired . | . . . . . . . . . . . Allies Hacked . | . . . . . . . . . . . Hacks Repelled . | . . . . . . . . . . . Allies | -11 -10 -10 -9 -9 -8 -7 -7 -7 -6 -6 -------- Run | Yrd Mat Min Mat Min Mat Fac Low Dat Pro Fac Total Allies 15 | . 1 . 2 4 4 3 . . . 1 Largest Group 7 | . 1 1 2 5 6 7 7 6 . 1 Highest-Rated Group 102 | . 10 10 20 60 70 102 101 91 . 26 Highest-Rated Ally 31 | . 10 10 10 31 16 26 26 26 . 26 Total Orders 60 | . . . 12 4 21 23 . . . . STAY 31 | . . . 6 2 11 12 . . . . FOLLOW 26 | . . . 6 2 7 11 . . . . GUARD 3 | . . . . . 3 . . . . . Ally Attacks 27 | . . . . 3 24 . . . . . Total Damage 312 | . . . . 41 271 . . . . . Kills 7 | . . . . 2 5 . . . . . Allies Corrupted . | . . . . . . . . . . . Allies Melted . | . . . . . . . . . . . Intel | -11 -10 -10 -9 -9 -8 -7 -7 -7 -6 -6 ------- Run | Yrd Mat Min Mat Min Mat Fac Low Dat Pro Fac Robot Analysis Total 4 | . 2 . 1 . . 1 . . . . Derelict Logs Recovered 4 | . . 1 . 1 . . 1 . 1 . Drone Launches . | . . . . . . . . . . . Drone Recoveries . | . . . . . . . . . . . Exploration | -11 -10 -10 -9 -9 -8 -7 -7 -7 -6 -6 ------------- Run | Yrd Mat Min Mat Min Mat Fac Low Dat Pro Fac Turns Passed 8395 | 43 1167 518 1130 596 2557 1380 63 50 186 705 Spaces Moved 7270 | 29 625 218 416 337 1279 2495 160 115 359 1237 Core 10 | 6 . . . . . . . . . 4 Treads 2783 | 23 625 218 416 337 1164 . . . . . Legs . | . . . . . . . . . . . Wheels . | . . . . . . . . . . . Hover . | . . . . . . . . . . . Flight 4477 | . . . . . 115 2495 160 115 359 1233 Fastest Speed 24 | 50 160 160 160 160 26 26 26 26 26 24 Average Speed 78 | 137 160 160 160 160 151 26 26 26 28 27 Slowest Speed 175 | 160 160 160 160 160 167 26 26 26 29 175 Overloaded Moves 7 | . . . . . . . . . . 7 Propulsion Burnouts . | . . . . . . . . . . . Robots Hopped 16 | . . . . . . 6 . . 2 8 Cave-ins Triggered . | . . . . . . . . . . . Exploration Rate (%) 52 | 3 85 67 32 69 56 58 29 81 52 48 Regions Visited 10 Branch Regions 5 Pre-discovered Areas 2 | . . . . 1 . . . 1 . . Known Exits Taken 4 | . . . . . . 1 1 1 1 . Unknown Exits Taken 6 | 1 1 1 1 1 1 . . . . . Scrap Searched 3 | . . . . 1 . . 1 . 1 . Spaces Dug 34 | . . . . . 6 17 . . 2 9 Terrain Destroyed 34 | . . . . . 6 17 . . 2 9 Melee 34 | . . . . . 6 17 . . 2 9 Projectile . | . . . . . . . . . . . AOE . | . . . . . . . . . . . Terrain Rammed . | . . . . . . . . . . . Walls Destroyed . | . . . . . . . . . . . Machines Disabled . | . . . . . . . . . . . Actions | -11 -10 -10 -9 -9 -8 -7 -7 -7 -6 -6 --------- Run | Yrd Mat Min Mat Min Mat Fac Low Dat Pro Fac Total 9534 | 31 728 378 800 360 1810 3154 180 131 424 1538 Wait 1722 | . 39 151 309 . 363 529 21 6 56 248 Move 7229 | 28 624 217 415 336 1278 2482 159 114 354 1222 Hop 15 | . . . . . . 6 . . 2 7 Pick Up 65 | . 21 2 7 2 16 14 . 1 . 2 Fast Attach 41 | 3 4 . 6 2 6 11 . 3 . 6 Attach 22 | . . . 5 . 9 5 . 1 . 2 Detach 11 | . . . 1 . 2 6 . . . 2 Swap 41 | . 1 1 4 . 14 11 . 1 3 6 Drop 95 | . 6 2 12 3 42 21 . 4 . 5 Fire 163 | . 32 5 41 17 68 . . . . . Melee 99 | . . . . . 9 45 . 1 9 35 Ram . | . . . . . . . . . . . Kick . | . . . . . . . . . . . Crush 4 | . 1 . . . 3 . . . . . Escape Stasis . | . . . . . . . . . . . Rewire . | . . . . . . . . . . . Trap 27 | . . . . . . 24 . . . 3 Miscellaneous . | . . . . . . . . . . . Route ------- -11/Scrapyard -10/Materials (discovered 4 exits: *Mat x3 / [*Min]) -10/Mines -9/Materials -9/Mines (discovered 2 exits: *Mat x2) -8/Materials (discovered 2 exits: *Fac x2) -7/Factory (discovered 2 exits: *Low x2) -7/Lower Caves -7/Data Miner -6/Proximity Caves -6/Factory (discovered 7 exits: *Fac x4 / [*Low x2] / Ext) History --------- Turn | Location | Event 20 | -11/Scrapyard | Discovered new exit (range 15) 44 | -11/Scrapyard | Entered Materials 318 | -10/Materials | Build established: Mutant 336 | -10/Materials | Discovered new exit (range 5) 527 | -10/Materials | Discovered new exit (range 12) 607 | -10/Materials | Central database locked down 636 | -10/Materials | Discovered new exit (range 16) 1048 | -10/Materials | Discovered new exit (range 14) 1211 | -10/Materials | Entered Mines 1211 | -10/Mines | Accompanied by 1 ally 1212 | -10/Mines | Assembled infested the area 1226 | -10/Mines | Met a Derelict bent on vengeance 1581 | -10/Mines | Learned Materials terminal intel 1591 | -10/Mines | Received a Rocket Launcher from a helpful Derelict 1644 | -10/Mines | Found a damaged Exp. Sensor Array with a note attached 1648 | -10/Mines | Found Prototype Device 1707 | -10/Mines | Discovered new exit (range 12) 1729 | -10/Mines | Entered Materials 1729 | -9/Materials | Evolved 2 slots: Propulsion x1, Utility x1 1730 | -9/Materials | Loaded intel: 12 terminal locations 1783 | -9/Materials | Identified Exp. Sensor Array 2116 | -9/Materials | Destroyed 10 combat bots 2615 | -9/Materials | Central database locked down 2649 | -9/Materials | Discovered new exit (range 8) 2778 | -9/Materials | Repaired Exp. Sensor Array 2817 | -9/Materials | Repaired Hacking Suite 2844 | -9/Materials | Repaired Lgt. Treads 2859 | -9/Materials | Entered Mines 2859 | -9/Mines | Accompanied by 2 allies 2862 | -9/Mines | Received a Mining Laser from a helpful Derelict 2961 | -9/Mines | Learned location of Storage (-9) 3069 | -9/Mines | Assisted by bots powering up and referring to "LRC-V3" 3273 | -9/Mines | Met a Derelict who couldn't figure out how to use a Trap Extractor 3332 | -9/Mines | Met a Derelict shopkeep closing up shop 3359 | -9/Mines | Build established: Commander-Mutant 3439 | -9/Mines | Discovered new exit (range 8) 3448 | -9/Mines | Discovered new exit (range 11) 3455 | -9/Mines | Entered Materials 3455 | -8/Materials | Accompanied by 5 allies 3455 | -8/Materials | Evolved 2 slots: Propulsion x1, Utility x1 4221 | -8/Materials | Discovered new exit (range 15) 4473 | -8/Materials | Build established: Scavenger-Mutant 4991 | -8/Materials | Build established: Mutant 5785 | -8/Materials | Build established: Commander-Mutant 5925 | -8/Materials | Discovered new exit (range 5) 6012 | -8/Materials | Entered Factory 6012 | -7/Factory | Accompanied by 4 allies 6012 | -7/Factory | Evolved 2 slots: Utility x2 6053 | -7/Factory | Discovered new exit (range 15) 6064 | -7/Factory | Identified exit to Lower Caves 6092 | -7/Factory | Fabricated Mni. Grenade Launcher (x1) 6481 | -7/Factory | Fabricated Imp. Datajack (x1) 6704 | -7/Factory | Fabricated Cld. VTOL Module? 7009 | -7/Factory | Cargo convoy interrupted 7038 | -7/Factory | Found Prototype Processor 7038 | -7/Factory | Identified Exp. Signal Interpreter 7325 | -7/Factory | Fabricated Imp. Propulsion Shielding (x2) 7357 | -7/Factory | Build established: Commander-Scout 7363 | -7/Factory | Discovered exit to Lower Caves (range 5) 7392 | -7/Factory | Entered Lower Caves 7392 | -7/Lower Caves | Accompanied by 7 allies 7413 | -7/Lower Caves | Learned location of 1 exit from Factory 7445 | -7/Lower Caves | A Derelict revealed a hidden shortcut to meet someone special 7448 | -7/Lower Caves | Identified exit to Data Miner 7455 | -7/Lower Caves | Entered Data Miner 7455 | -7/Data Miner | Accompanied by 6 allies 7455 | -7/Data Miner | Discovered new exit (range 7) 7459 | -7/Data Miner | Met Data Miner 7465 | -7/Data Miner | Learned location of Section 7 (-2) 7465 | -7/Data Miner | Acquired the access code to Warlord's prototype stash 7470 | -7/Data Miner | Received God Mode back door access code from Data Miner 7482 | -7/Data Miner | Destroyed Data Miner 7486 | -7/Data Miner | Found Prototype Hackware 7486 | -7/Data Miner | Identified Deep Network Scanner 7489 | -7/Data Miner | Found Prototype Hackware 7489 | -7/Data Miner | Identified Ghost Barrier 7491 | -7/Data Miner | Found Prototype Hackware 7491 | -7/Data Miner | Identified System Mapper 7494 | -7/Data Miner | Found Prototype Hackware 7499 | -7/Data Miner | Data Conduit disabled 7504 | -7/Data Miner | Identified exit to Proximity Caves 7505 | -7/Data Miner | Entered Proximity Caves 7526 | -6/Proximity Caves | Lost 3 allies 7603 | -6/Proximity Caves | Learned Factory emergency access door positions 7663 | -6/Proximity Caves | Attracted the attention of an 0b10 checkpoint 7665 | -6/Proximity Caves | Spotted B-75 Beast 7688 | -6/Proximity Caves | Discovered new exit (range 8) 7690 | -6/Proximity Caves | Identified exit to Factory 7691 | -6/Proximity Caves | Entered Factory 7691 | -6/Factory | Evolved 2 slots: Propulsion x1, Utility x1 7692 | -6/Factory | Identified exit to Extension 7745 | -6/Factory | Identified exit to Factory 7911 | -6/Factory | Spotted B-75 Beast 7914 | -6/Factory | Central database locked down 8055 | -6/Factory | Discovered new exit (range 5) 8122 | -6/Factory | Repaired Exp. Sensor Array 8142 | -6/Factory | Repaired Cesium-ion Thruster 8172 | -6/Factory | Identified Quantum Router 8244 | -6/Factory | Garrison activated, responded to threat 8315 | -6/Factory | Discovered new exit (range 13) 8345 | -6/Factory | Lost 3 parts (3n) 8369 | -6/Factory | Cargo convoy interrupted 8391 | -6/Factory | Core integrity fell below 50% 8394 | -6/Factory | Core integrity fell below 20% 8396 | -6/Factory | Destroyed by A-27 Freighter with PD Laser Last Messages --------------- P-60 Hacker resets P-60 Hacker, system corruption cleaned. Deep Network Scanner destroyed. Dropped Med. Storage Unit. Imp. VTOL Module destroyed. M-28 Smith fits Backup Power III on X-62 Marksman. Penetrated by Slug. Slug penetrates A-27 Freighter. Door malfunctions. M-28 Smith repairs Imp. Carbon-fiber Leg. Penetrated by Slug. P-60 Hacker resets X-72 Disruptor, system corruption cleaned. Slug penetrates A-27 Freighter. Slug penetrates I-36 Angel. Slug penetrates Wall. R-10 Processor collects Shock Rifle. P-60 Hacker resets A-27 Freighter, system corruption cleaned. Map ----- +----------------------------------------------------+ | ????????# ? ?????????????????????????????? | | ??#+##### ? """"?#???????????????????????? | | ?? #?? """" ????????????????????????? | | ?? #?? """" ????????????????????????? | | ??? #?? """"?????????????????????????? | | ?? #?? """??????????????????????????? | | ??"""""""" ##? """??????????????????????????? | | ? #? ???????????????????????????? | | """"""""" ###+############+#######+######## | | | | """"""""" | | """ | | """"""""" """ | | A """ | | ################"########### | | ###+#### #?????#######??# # "?? | | ???????##### #####?????# #??# """ "" # """ | | ???????????# #?????????# #### """ """ # """ | | ???????????# #?????????# + """ F" # | | ??????????##+########### #### """ # | | ??????????# ! # !#??# "" # | | ??????????# """ # !!#??# # | | ??????????# """"" # ip]####R ;;;;##+### | | ????A?????# """"" # p p h % % | | ??????????# = # x h ! % | | ???????+??+ """ /i@ m =/ | | ??????????# """"" #A x | | R?????????# """"" # ! =/ !! | | ??????????# # !! | | #?????????# ] # !! | | #?????????# / m | | ??????????# #######; | | ??????????##############??????; " | | ??????????????????????????????# %! *= | | ??????????????????????????????# = | | ??????????????????????????????###;; | | ????????????????????????????????? ; | | ????????????????????????????????? # | | ?????????????????????????????????? + | | ?????????????????????????????????? # | | ???????????????????????????+?????? # | | ???????????????????????????????????? # | | ???????????????????????????????????? # ####### | | ?????????????????????????????????????# #?????? | | ?????????????????????????????????????# #?????? | | ???????????????????????##+???????????# +?????? | | ######???????????????? ????????????# #?????? | | ???????????????? ?????????????# #?????? | | #???????????????? ""??????????????# #?????? | | ################# "????????????######+#######?? | +----------------------------------------------------+ Best States ------------- Heat Dissipation 37 Energy Generation 14 Energy Capacity 280 Matter Stores 300 Matter Capacity 300 Sight Range 22 Robot Scan Range 20 Terrain Scan Density 10 ECM Strength 1 Jamming Range 12 Additional Mass Support 16 Armor Coverage 450 Power Shielding 66 Propulsion Shielding 66 Evasion (%) 65 Targeting Accuracy 5 Recoil Reduction 4 Offensive Hacking 45 Defensive Hacking 25 Trap Extractor Capacity 6 Item Schematics ----------------- Scythe | -8/Materials | Hacked Imp. Propulsion Shielding | -8/Materials | Hacked Imp. Power Shielding | -8/Materials | Hacked Imp. Utility Shielding | -8/Materials | Hacked ECM Suite | -8/Materials | Hacked Mni. Grenade Launcher | -8/Materials | Hacked Med. Storage Unit | -8/Materials | Scanalyzed Hacking Suite | -8/Materials | Scanalyzed Exp. Sensor Array | -8/Materials | Scanalyzed Adv. ECM Suite | -7/Factory | Scanalyzed Cld. VTOL Module | -7/Factory | Hacked Imp. Hacking Suite | -7/Factory | Hacked Imp. Datajack | -7/Factory | Hacked Gravity Neutralizer | -7/Data Miner | Free Lgt. Regenerative Plating | -7/Data Miner | Free Exp. Propulsion Shielding | -6/Factory | Hacked Adv. Gravity Neutralizer | -6/Factory | Scanalyzed Robot Schematics ------------------ None Fabricated ------------ Mni. Grenade Launcher | x1 | -7/Factory Imp. Datajack | x1 | -7/Factory Cld. VTOL Module | x1 | -7/Factory Imp. Propulsion Shielding | x2 | -7/Factory Alien Tech Used ----------------- None Achievements -------------- None Challenges ------------ None Game ------ Seed GottaGoFast Manual? 1 Play Time 01:49:49 Cumulative 507.2 hours Start 2024.06.29 @ 12:11:46 End 2024.07.24 @ 11:45:19 Sessions 41 Manual Loads 0 Difficulty Rogue Special Mode None Game No. 265 Rogue 265 Adventurer 0 Explorer 0 Win Type - Total 34 Types 22/2/3/3/1/1/1/1/0 Lore% 90 Gallery% 98 Achievement% 98 Wizard Run 0 Options --------- Layout 1 ASCII 0 Keyboard 0 Movement Numpad Keybinds 0 Fullscreen 1 Font 24/Smallcaps Map View 50x35 Zoom Use 0% Tactical HUD 1 Map Filters NONE Filters NONE Steam 1 RUN: d261bc59-f952-48f1-b1d4-cc591fa224d0